fUST/lending_fUST_20250722
["ID","MTS","AMOUNT","RATE_DAILY","PERIOD"]
[374079278,1753197033082,-460.0,0.00016792,2]
[374079280,1753197033092,-460.0,0.00016792,2]
[374079282,1753197033102,-463.49769264,0.00016792,2]
[374079283,1753197033112,-460.0,0.00016792,2]
[374079285,1753197033123,-578.3388043,0.00016792,2]
[374079287,1753197033132,-460.0,0.00016792,2]
[374079289,1753197033142,-460.0,0.00016792,2]
[374079291,1753197033152,-460.0,0.00016792,2]
[374079293,1753197033162,-462.16852898,0.00016792,2]
[374079295,1753197033173,-460.0,0.00016792,2]
[374079298,1753197033183,-460.0,0.00016792,2]
[374079299,1753197033192,-460.0,0.00016792,2]
[374079300,1753197033202,-460.0,0.00016792,2]
[374079301,1753197033212,-2348.86,0.00016792,2]
[374079303,1753197033222,-460.0,0.00016792,2]
[374079305,1753197033232,-460.0,0.00016792,2]
[374079307,1753197033243,-558.50960345,0.00016792,2]
[374079309,1753197033255,-460.0,0.00016792,2]
[374079311,1753197033264,-400.00000033,0.00016792,2]
[374079313,1753197033274,-460.0,0.00016792,2]
[374079315,1753197033284,-460.0,0.00016792,2]
[374079318,1753197033294,-460.0,0.00016792,2]
[374079320,1753197033308,-460.0,0.00016792,2]
[374079322,1753197033318,-461.28143089,0.00016792,2]
[374079323,1753197033328,-460.0,0.00016792,2]
[374079325,1753197033342,-460.0,0.00016792,2]
[374079326,1753197033352,-460.0,0.00016792,2]
[374079328,1753197033362,-460.0,0.00016792,2]
[374079330,1753197033372,-390.75624519,0.00016792,2]
[374079332,1753197033383,-460.0,0.00016792,2]
[374079334,1753197033393,-460.0,0.00016792,2]
[374079337,1753197033403,-1422.65,0.00016792,2]
[374079339,1753197033415,-460.0,0.00016792,2]
[374079340,1753197033425,-460.0,0.00016792,2]
[374079343,1753197033435,-462.24743105,0.00016792,2]
[374079345,1753197033446,-463.20317747,0.00016792,2]
[374079346,1753197033456,-460.0,0.00016792,2]
[374079347,1753197033465,-571.77030123,0.00016792,2]
[374079350,1753197033475,-460.0,0.00016792,2]
[374079352,1753197033484,-460.0,0.00016792,2]
[374079354,1753197033494,-462.62143596,0.00016792,2]
[374079355,1753197033506,-460.0,0.00016792,2]
[374079357,1753197033517,-460.0,0.00016792,2]
[374079359,1753197033527,-460.0,0.00016792,2]
[374079361,1753197033537,-460.0,0.00016792,2]
[374079362,1753197033712,-460.0,0.00016792,2]
[374079363,1753197033723,-460.0,0.00016792,2]
[374079364,1753197033734,-607.52,0.00016792,2]
[374079365,1753197033743,-406.58504031,0.00016792,2]
[374079366,1753197033756,-871.9,0.00016792,2]
[374079367,1753197033766,-460.0,0.00016792,2]
[374079368,1753197033775,-461.77275098,0.00016792,2]
[374079369,1753197033785,-461.22878906,0.00016792,2]
[374079370,1753197033794,-462.74924937,0.00016792,2]
[374079371,1753197033803,-461.52856998,0.00016792,2]
[374079372,1753197033813,-460.0,0.00016792,2]
[374079373,1753197033822,-460.0,0.00016792,2]
[374079374,1753197033832,-460.0,0.00016792,2]
[374079375,1753197033841,-460.63046216,0.00016792,2]
[374079376,1753197033851,-463.53115544,0.00016792,2]
[374079377,1753197033861,-460.0,0.00016792,2]
[374079378,1753197033871,-460.0,0.00016792,2]
[374079379,1753197033880,-460.0,0.00016792,2]
[374079380,1753197033890,-462.69044354,0.00016792,2]
[374079381,1753197033899,-460.0,0.00016792,2]
[374079382,1753197033909,-460.0,0.00016792,2]
[374079383,1753197033919,-465.92768651,0.00016792,2]
[374079384,1753197033929,-715.77,0.00016792,2]
[374079385,1753197033938,-460.0,0.00016792,2]
[374079386,1753197033948,-461.32839948,0.00016792,2]
[374079387,1753197033957,-461.9155121,0.00016792,2]
[374079388,1753197033966,-460.0,0.00016792,2]
[374079389,1753197033976,-460.0,0.00016792,2]
[374079390,1753197033985,-460.0,0.00016792,2]
[374079391,1753197033995,-460.0,0.00016792,2]
[374079392,1753197034006,-460.0,0.00016792,2]
[374079393,1753197034016,-460.0,0.00016792,2]
[374079394,1753197034025,-460.0,0.00016792,2]
[374079395,1753197034035,-460.0,0.00016792,2]
[374079396,1753197034044,-460.0,0.00016792,2]
[374079397,1753197034054,-460.0,0.00016792,2]
[374079398,1753197034064,-460.0,0.00016792,2]
[374079399,1753197034074,-460.0,0.00016792,2]
[374079400,1753197034085,-460.7983167,0.00016792,2]
[374079401,1753197034096,-461.43273571,0.00016792,2]
[374079402,1753197034106,-404.20598547,0.00016792,2]
[374079403,1753197034116,-460.0,0.00016792,2]
[374079404,1753197034126,-460.0,0.00016792,2]
[374079405,1753197034136,-737.25,0.00016792,2]
[374079406,1753197034146,-460.0,0.00016792,2]
[374079407,1753197034155,-460.0,0.00016792,2]
[374079408,1753197034166,-462.35983748,0.00016792,2]
[374079409,1753197034175,-460.0,0.00016792,2]
[374079410,1753197034184,-460.0,0.00016792,2]
[374079411,1753197034194,-460.0,0.00016792,2]
[374079412,1753197034203,-460.0,0.00016792,2]
[374079413,1753197034212,-460.0,0.00016792,2]
[374079414,1753197034222,-460.7284847,0.00016792,2]
[374079415,1753197034231,-160.0,0.00016793,2]
[374079416,1753197034240,-365.34,0.00016856,3]
[374079417,1753197034251,-460.0,0.00016863,2]
[374079418,1753197034261,-409.15763858,0.00016863,2]
[374079419,1753197034270,-293.05167748,0.00016863,2]
[374079420,1753197034280,-460.0,0.00016863,2]
[374079421,1753197034290,-460.0,0.00016863,2]
[374079422,1753197034299,-460.0,0.00016863,2]
[374079423,1753197034309,-460.0,0.00016863,2]
[374079424,1753197034319,-460.0,0.00016863,2]
[374079425,1753197034328,-460.0,0.00016863,2]
[374079426,1753197034341,-460.0,0.00016863,2]
[374079427,1753197034351,-460.0,0.00016863,2]
[374079428,1753197034360,-460.0,0.00016864,2]
[374079429,1753197034369,-460.0,0.00016864,2]
[374079430,1753197034380,-468.77503327,0.00016864,2]
[374079431,1753197034389,-460.0,0.00016864,2]
[374079432,1753197034398,-229.03170315,0.00016864,2]
[374079433,1753197034408,-460.0,0.00016864,2]
[374079434,1753197034418,-460.0,0.00016864,2]
[374079435,1753197034427,-460.0,0.00016864,2]
[374079436,1753197034436,-369.62656306,0.00016864,2]
[374079437,1753197034445,-475.41915853,0.00016864,2]
[374079438,1753197034454,-448.29025465,0.00016864,2]
[374079439,1753197034463,-460.0,0.00016864,2]
[374079440,1753197034473,-460.0,0.00016864,2]
[374079441,1753197034482,-912.88,0.00016864,2]
[374079442,1753197034491,-460.0,0.00016864,2]
[374079443,1753197034502,-460.0,0.00016864,2]
[374079444,1753197034512,-500.0,0.00016864,2]
[374079445,1753197034521,-500.0,0.00016864,2]
[374079446,1753197034531,-161.56868937,0.00016864,2]
[374079447,1753197034540,-500.0,0.00016864,2]
[374079448,1753197034550,-282.07225523,0.00016864,2]
[374079449,1753197034561,-500.0,0.00016864,2]
[374079450,1753197034570,-500.0,0.00016864,2]
[374079451,1753197034580,-500.0,0.00016864,2]
[374079452,1753197034589,-429.59294877,0.00016864,2]
[374079453,1753197034598,-500.0,0.00016864,2]
[374079454,1753197034608,-500.0,0.00016864,2]
[374079455,1753197034618,-500.0,0.00016864,2]
[374079456,1753197034627,-500.0,0.00016864,2]
[374079457,1753197034636,-211.18233041,0.00016864,2]
[374079458,1753197034646,-559.73724235,0.00016864,2]
[374079459,1753197034655,-500.0,0.00016864,2]
[374079460,1753197034665,-500.0,0.00016864,2]
[374079461,1753197034675,-500.0,0.00016864,2]
[374079462,1753197034684,-500.0,0.00016864,2]
[374079463,1753197034693,-500.0,0.00016864,2]
[374079464,1753197034703,-500.0,0.00016864,2]
[374079465,1753197034712,-500.0,0.00016864,2]
[374079466,1753197034722,-500.0,0.00016864,2]
[374079467,1753197034731,-500.0,0.00016864,2]
[374079468,1753197034740,-500.0,0.00016864,2]
[374079469,1753197034750,-500.0,0.00016864,2]
[374079470,1753197034759,-500.0,0.00016864,2]
[374079471,1753197034768,-575.66765438,0.00016864,2]
[374079472,1753197034777,-500.0,0.00016864,2]
[374079473,1753197034786,-500.0,0.00016864,2]
[374079474,1753197034795,-500.0,0.00016864,2]
[374079475,1753197034805,-315.77696211,0.00016864,2]
[374079476,1753197034814,-500.0,0.00016864,2]
[374079477,1753197034824,-500.0,0.00016864,2]
[374079478,1753197034834,-500.0,0.00016864,2]
[374079479,1753197034843,-500.0,0.00016864,2]
[374079480,1753197034852,-250.0,0.00016864,2]
[374079481,1753197034862,-460.0,0.00016864,2]
[374079482,1753197034872,-460.0,0.00016864,2]
[374079483,1753197034882,-460.0,0.00016864,2]
[374079484,1753197034892,-460.0,0.00016864,2]
[374079485,1753197034902,-1325.56,0.00016864,2]
[374079486,1753197034912,-460.0,0.00016864,2]
[374079487,1753197034921,-486.33,0.00016864,2]
[374079488,1753197034931,-460.0,0.00016864,2]
[374079489,1753197034940,-557.32636232,0.00016864,2]
[374079490,1753197034950,-460.0,0.00016864,2]
[374079491,1753197034960,-503.2,0.00016864,2]
[374079492,1753197034970,-460.0,0.00016864,2]
[374079493,1753197034979,-460.0,0.00016865,2]
[374079494,1753197034989,-460.0,0.00016865,2]
[374079495,1753197034998,-460.0,0.00016865,2]
[374079496,1753197035007,-460.0,0.00016865,2]
[374079497,1753197035016,-460.0,0.00016865,2]
[374079498,1753197035025,-460.0,0.00016865,2]
[374079499,1753197035035,-460.0,0.00016865,2]
[374079500,1753197035044,-460.0,0.00016865,2]
[374079501,1753197035054,-460.0,0.00016865,2]
[374079502,1753197035063,-460.0,0.00016865,2]
[374079503,1753197035073,-460.0,0.00016865,2]
[374079504,1753197035083,-460.0,0.00016865,2]
[374079505,1753197035092,-460.0,0.00016865,2]
[374079506,1753197035101,-460.0,0.00016865,2]
[374079507,1753197035111,-460.0,0.00016865,2]
[374079508,1753197035120,-460.0,0.00016865,2]
[374079509,1753197035130,-461.03477258,0.00016865,2]
[374079510,1753197035140,-460.0,0.00016865,2]
[374079511,1753197035150,-460.0,0.00016865,2]
[374079512,1753197035160,-460.0,0.00016865,2]
[374079513,1753197035169,-460.0,0.00016865,2]
[374079514,1753197035178,-460.0,0.00016865,2]
[374079515,1753197035188,-461.56845937,0.00016865,2]
[374079516,1753197035198,-460.0,0.00016865,2]
[374079517,1753197035207,-460.0,0.00016865,2]
[374079518,1753197035217,-278.65398212,0.00016865,2]
[374079519,1753197035226,-460.0,0.00016865,2]
[374079520,1753197035236,-460.0,0.00016865,2]
[374079521,1753197035245,-460.0,0.00016865,2]
[374079522,1753197035261,-460.0,0.00016865,2]
[374079523,1753197035271,-214.13485886,0.00016865,2]
[374079524,1753197035280,-460.0,0.00016865,2]
[374079525,1753197035289,-460.0,0.00016865,2]
[374079526,1753197035298,-21.25415107,0.00016865,2]
[374079527,1753197035409,-438.74584893,0.00016865,2]
[374079528,1753197035420,-460.0,0.00016865,2]
[374079529,1753197035429,-337.58329965,0.00016865,2]
[374079530,1753197035440,-162.41670035,0.00016865,2]
[374079531,1753197035450,-500.0,0.00016865,2]
[374079532,1753197035459,-460.0,0.00016865,2]
[374079533,1753197035468,-460.0,0.00016865,2]
[374079534,1753197035478,-460.0,0.00016865,2]
[374079535,1753197035487,-460.0,0.00016865,2]
[374079536,1753197035496,-315.8677693,0.00016865,2]
[374079571,1753197038591,-1209.25725793,0.00016792,2]
[374079573,1753197038601,-460.0,0.00016792,2]
[374079575,1753197038611,-144.1322307,0.00016865,2]
[374079577,1753197038621,-460.0,0.00016865,2]
[374079579,1753197038630,-460.0,0.00016865,2]
[374079581,1753197038640,-462.68828021,0.00016866,2]
[374079584,1753197038649,-460.0,0.00016866,2]
[374079586,1753197038658,-461.18412538,0.00016866,2]
[374079588,1753197038667,-460.0,0.00016866,2]
[374079590,1753197038677,-462.28814118,0.00016866,2]
[374079592,1753197038686,-460.0,0.00016866,2]
[374079594,1753197038696,-169.99694495,0.00016866,2]
[374079623,1753197038981,-332.1650297,0.00016866,2]
[374079625,1753197038991,-460.0,0.00016866,2]
[374079627,1753197039001,-460.0,0.00016866,2]
[374079629,1753197039011,-462.26198084,0.00016866,2]
[374079631,1753197039020,-415.67298946,0.00016866,2]
[374079633,1753197039031,-44.32701054,0.00016866,2]
[374079635,1753197039041,-466.99937723,0.00016866,2]
[374079637,1753197039050,-41.04292079,0.00016866,2]
[374079652,1753197039167,-431.76398239,0.00016866,2]
[374079655,1753197039177,-575.2046966,0.00016866,2]
[374079657,1753197039187,-460.0,0.00016866,2]
[374079659,1753197039197,-460.0,0.00016866,2]
[374079661,1753197039206,-460.0,0.00016866,2]
[374079663,1753197039215,-290.9357974,0.00016866,2]
[374079665,1753197039224,-460.0,0.00016866,2]
[374079667,1753197039234,-286.61207096,0.00016866,2]
[374079669,1753197039243,-460.0,0.00016866,2]
[374079671,1753197039252,-463.7001048,0.00016866,2]
[374079673,1753197039263,-460.0,0.00016866,2]
[374079675,1753197039273,-460.0,0.00016866,2]
[374079677,1753197039283,-460.0,0.00016866,2]
[374079679,1753197039293,-460.0,0.00016866,2]
[374079681,1753197039303,-460.0,0.00016866,2]
[374079683,1753197039313,-460.0,0.00016866,2]
[374079685,1753197039322,-460.0,0.00016866,2]
[374079687,1753197039332,-460.0,0.00016866,2]
[374079689,1753197039345,-460.0,0.00016866,2]
[374079691,1753197039355,-460.0,0.00016866,2]
[374079693,1753197039365,-460.0,0.00016866,2]
[374079695,1753197039374,-460.0,0.00016866,2]
[374079697,1753197039384,-460.0,0.00016866,2]
[374079699,1753197039394,-460.65012483,0.00016866,2]
[374079701,1753197039403,-460.0,0.00016866,2]
[374079703,1753197039414,-460.0,0.00016866,2]
[374079705,1753197039423,-460.0,0.00016866,2]
[374079707,1753197039433,-460.0,0.00016866,2]
[374079709,1753197039442,-460.0,0.00016866,2]
[374079711,1753197039451,-460.0,0.00016866,2]
[374079713,1753197039460,-433.75656594,0.00016866,2]
[374079714,1753197039469,-344.66098048,0.00016866,2]
[374079715,1753197039478,-460.0,0.00016866,2]
[374079716,1753197039487,-461.94113741,0.00016866,2]
[374079717,1753197039496,-460.0,0.00016866,2]
[374079718,1753197039506,-464.14793197,0.00016866,2]
[374079719,1753197039516,-460.0,0.00016866,2]
[374079720,1753197039525,-460.0,0.00016866,2]
[374079721,1753197039534,-460.0,0.00016866,2]
[374079722,1753197039543,-460.0,0.00016866,2]
[374079723,1753197039553,-2765.69,0.00016866,2]
[374079724,1753197039562,-460.0,0.00016866,2]
[374079725,1753197039572,-460.0,0.00016866,2]
[374079726,1753197039581,-461.05753594,0.00016866,2]
[374079727,1753197039590,-460.58987023,0.00016866,2]
[374079728,1753197039600,-460.0,0.00016866,2]
[374079729,1753197039610,-460.0,0.00016866,2]
[374079730,1753197039620,-460.0,0.00016866,2]
[374079732,1753197039631,-460.0,0.00016866,2]
[374079734,1753197039641,-460.0,0.00016866,2]
[374079736,1753197039651,-460.0,0.00016866,2]
[374079738,1753197039660,-460.0,0.00016866,2]
[374079740,1753197039670,-460.0,0.00016866,2]
[374079743,1753197039691,-523.88199378,0.00016866,2]
[374079745,1753197039702,-460.0,0.00016867,2]
[374079747,1753197039712,-460.0,0.00016867,2]
[374079749,1753197039722,-460.0,0.00016867,2]
[374079751,1753197039732,-460.0,0.00016867,2]
[374079753,1753197039742,-460.0,0.00016867,2]
[374079755,1753197039752,-460.0,0.00016867,2]
[374079757,1753197039764,-460.0,0.00016867,2]
[374079759,1753197039774,-460.0,0.00016867,2]
[374079761,1753197039786,-460.0,0.00016867,2]
[374079763,1753197039795,-460.0,0.00016867,2]
[374079765,1753197039805,-460.0,0.00016867,2]
[374079767,1753197039815,-460.0,0.00016867,2]
[374079769,1753197039825,-460.0,0.00016867,2]
[374079771,1753197039835,-460.0,0.00016867,2]
[374079773,1753197039844,-460.0,0.00016867,2]
[374079775,1753197039854,-460.0,0.00016867,2]
[374079777,1753197039864,-460.0,0.00016867,2]
[374079779,1753197039874,-460.0,0.00016867,2]
[374079781,1753197039884,-460.0,0.00016867,2]
[374079783,1753197039894,-460.0,0.00016867,2]
[374079785,1753197039904,-3911.73,0.00016867,2]
[374079787,1753197039913,-460.0,0.00016867,2]
[374079789,1753197039923,-460.0,0.00016867,2]
[374079791,1753197039933,-461.0128182,0.00016867,2]
[374079793,1753197039942,-460.0,0.00016867,2]
[374079795,1753197039952,-460.0,0.00016867,2]
[374079797,1753197039963,-460.0,0.00016867,2]
[374079799,1753197039973,-651.39,0.00016867,2]
[374079801,1753197039983,-460.0,0.00016868,2]
[374079803,1753197039994,-1316.16,0.00016868,2]
[374079805,1753197040004,-152.87089882,0.00016868,2]
[374079807,1753197040015,-460.0,0.00016868,2]
[374079808,1753197040025,-869.54,0.00016868,2]
[374079809,1753197040035,-1624.65,0.00016868,2]
[374079811,1753197040045,-969.07,0.00016868,2]
[374079813,1753197040055,-500.0,0.00016873,2]
[374079815,1753197040065,-503.14242823,0.00016873,2]
[374079818,1753197040074,-502.86609001,0.00016873,2]
[374079820,1753197040083,-500.0,0.00016873,2]
[374079822,1753197040093,-500.0,0.00016873,2]
[374079824,1753197040103,-500.0,0.00016873,2]
[374079826,1753197040113,-500.0,0.00016873,2]
[374079828,1753197040122,-500.0,0.00016873,2]
[374079830,1753197040131,-500.0,0.00016873,2]
[374079831,1753197040141,-500.0,0.00016873,2]
[374079832,1753197040151,-500.0,0.00016873,2]
[374079833,1753197040160,-500.0,0.00016873,2]
[374079834,1753197040171,-500.0,0.00016873,2]
[374079835,1753197040181,-500.0,0.00016873,2]
[374079836,1753197040191,-500.0,0.00016873,2]
[374079837,1753197040201,-425.01342842,0.000169,2]
[374079838,1753197040215,-2098.34399446,0.000169,2]
[374079839,1753197040225,-821.61580972,0.00016965,2]
[374079840,1753197040235,-17676.33668553,0.00016966,2]
[374079841,1753197040244,-460.0,0.00017065,2]
[374079842,1753197040254,-460.0,0.00017065,2]
[374079843,1753197040265,-460.0,0.00017065,2]
[374079844,1753197040275,-460.0,0.00017065,2]
[374079845,1753197040285,-886.97,0.00017065,2]
[374079846,1753197040298,-165.91232162,0.00017065,2]
[374079847,1753197040308,-460.0,0.00017065,2]
[374079848,1753197040318,-460.0,0.00017066,2]
[374079849,1753197040329,-460.0,0.00017066,2]
[374079850,1753197040341,-460.0,0.00017066,2]
[374079851,1753197040351,-460.0,0.00017066,2]
[374079852,1753197040361,-460.0,0.00017066,2]
[374079853,1753197040371,-460.0,0.00017066,2]
[374079854,1753197040382,-460.0,0.00017066,2]
[374079855,1753197040392,-460.0,0.00017066,2]
[374079856,1753197040401,-460.0,0.00017066,2]
[374079857,1753197040411,-460.0,0.00017066,2]
[374079858,1753197040421,-2348.86,0.00017066,2]
[374079859,1753197040432,-460.0,0.00017066,2]
[374079860,1753197040441,-460.0,0.00017066,2]
[374079861,1753197040451,-460.0,0.00017066,2]
[374079862,1753197040460,-460.0,0.00017066,2]
[374079863,1753197040470,-1422.65,0.00017066,2]
[374079864,1753197040480,-460.0,0.00017066,2]
[374079865,1753197040490,-460.0,0.00017066,2]
[374079866,1753197040499,-460.0,0.00017066,2]
[374079867,1753197040511,-460.0,0.00017066,2]
[374079868,1753197040521,-460.0,0.00017066,2]
[374079869,1753197040530,-460.0,0.00017066,2]
[374079870,1753197040540,-460.0,0.00017066,2]
[374079871,1753197040550,-607.52,0.00017066,2]
[374079872,1753197040559,-871.9,0.00017066,2]
[374079873,1753197040569,-460.0,0.00017066,2]
[374079874,1753197040578,-460.0,0.00017066,2]
[374079875,1753197040587,-460.0,0.00017066,2]
[374079876,1753197040596,-460.0,0.00017066,2]
[374079877,1753197040605,-715.77,0.00017066,2]
[374079878,1753197040614,-460.0,0.00017066,2]
[374079879,1753197040624,-460.0,0.00017066,2]
[374079880,1753197040633,-460.0,0.00017066,2]
[374079881,1753197040642,-460.0,0.00017066,2]
[374079882,1753197040652,-460.0,0.00017066,2]
[374079883,1753197040661,-460.0,0.00017066,2]
[374079884,1753197040671,-460.0,0.00017066,2]
[374079885,1753197040681,-460.0,0.00017066,2]
[374079886,1753197040691,-460.0,0.00017066,2]
[374079888,1753197040700,-737.25,0.00017066,2]
[374079890,1753197040710,-460.0,0.00017066,2]
[374079892,1753197040721,-460.0,0.00017066,2]
[374079894,1753197040731,-460.0,0.00017066,2]
[374079896,1753197040740,-470.42540862,0.00017066,2]
[374079898,1753197040750,-460.0,0.00017066,2]
[374079900,1753197040765,-460.0,0.00017066,2]
[374079902,1753197040774,-313.32962076,0.00017104,2]
[374079903,1753197040784,-460.0,0.00017137,2]
[374079904,1753197040794,-460.0,0.00017137,2]
[374079905,1753197040804,-460.0,0.00017137,2]
[374079906,1753197040813,-460.0,0.00017137,2]
[374079907,1753197040823,-460.0,0.00017137,2]
[374079911,1753197040832,-460.0,0.00017137,2]
[374079913,1753197040842,-460.0,0.00017137,2]
[374079915,1753197040851,-460.0,0.00017137,2]
[374079916,1753197040860,-460.0,0.00017138,2]
[374079918,1753197040870,-460.0,0.00017138,2]
[374079920,1753197040879,-912.88,0.00017138,2]
[374079921,1753197040889,-460.0,0.00017138,2]
[374079922,1753197040898,-460.0,0.00017138,2]
[374079923,1753197040908,-460.0,0.00017138,2]
[374079924,1753197040918,-460.0,0.00017138,2]
[374079925,1753197040927,-460.0,0.00017138,2]
[374079926,1753197040936,-460.0,0.00017138,2]
[374079927,1753197040945,-1325.56,0.00017138,2]
[374079928,1753197040955,-460.0,0.00017138,2]
[374079929,1753197040964,-486.33,0.00017138,2]
[374079930,1753197040973,-460.0,0.00017138,2]
[374079931,1753197040983,-503.2,0.00017138,2]
[374079932,1753197040992,-460.0,0.00017138,2]
[374079933,1753197041002,-460.0,0.00017139,2]
[374079934,1753197041014,-460.0,0.00017139,2]
[374079935,1753197041024,-460.0,0.00017139,2]
[374079936,1753197041033,-460.0,0.00017139,2]
[374079937,1753197041043,-460.0,0.00017139,2]
[374079938,1753197041052,-460.0,0.00017139,2]
[374079939,1753197041062,-460.0,0.00017139,2]
[374079940,1753197041072,-460.0,0.00017139,2]
[374079941,1753197041081,-460.0,0.00017139,2]
[374079942,1753197041091,-460.0,0.00017139,2]
[374079943,1753197041101,-460.0,0.00017139,2]
[374079944,1753197041111,-460.0,0.00017139,2]
[374079945,1753197041120,-460.0,0.00017139,2]
[374079946,1753197041129,-460.0,0.00017139,2]
[374079947,1753197041138,-460.0,0.00017139,2]
[374079948,1753197041148,-460.0,0.00017139,2]
[374079949,1753197041157,-460.0,0.00017139,2]
[374079950,1753197041167,-460.0,0.00017139,2]
[374079951,1753197041176,-460.0,0.00017139,2]
[374079952,1753197041186,-460.0,0.00017139,2]
[374079953,1753197041196,-460.0,0.00017139,2]
[374079954,1753197041206,-460.0,0.00017139,2]
[374079955,1753197041215,-460.0,0.00017139,2]
[374079956,1753197041225,-460.0,0.00017139,2]
[374079957,1753197041234,-460.0,0.00017139,2]
[374079958,1753197041244,-460.0,0.0001714,2]
[374079959,1753197041253,-460.0,0.0001714,2]
[374079960,1753197041264,-460.0,0.0001714,2]
[374079961,1753197041274,-460.0,0.0001714,2]
[374079962,1753197041284,-460.0,0.0001714,2]
[374079963,1753197041294,-357.06134846,0.0001714,2]
[374079964,1753197041308,-102.93865154,0.0001714,2]
[374079965,1753197041318,-460.0,0.0001714,2]
[374079966,1753197041328,-460.0,0.0001714,2]
[374079967,1753197041341,-460.0,0.0001714,2]
[374079968,1753197041350,-460.0,0.0001714,2]
[374079969,1753197041360,-460.0,0.0001714,2]
[374079970,1753197041370,-329.55366207,0.0001714,2]
[374079971,1753197041381,-460.0,0.0001714,2]
[374079972,1753197041391,-460.0,0.0001714,2]
[374079973,1753197041400,-460.0,0.0001714,2]
[374079974,1753197041411,-460.0,0.0001714,2]
[374079975,1753197041421,-460.0,0.0001714,2]
[374079976,1753197041430,-2411.47016639,0.0001714,2]
[374079977,1753197041443,-354.21983361,0.0001714,2]
[374079978,1753197041453,-460.97223986,0.0001714,2]
[374079979,1753197041462,-463.01139426,0.0001714,2]
[374079980,1753197041472,-460.0,0.0001714,2]
[374079981,1753197041481,-460.0,0.0001714,2]
[374079982,1753197041490,-460.0,0.0001714,2]
[374079983,1753197041500,-460.0,0.0001714,2]
[374079984,1753197041510,-460.0,0.0001714,2]
[374079985,1753197041519,-460.0,0.00017141,2]
[374079986,1753197041528,-460.0,0.00017141,2]
[374079987,1753197041538,-465.01052589,0.00017141,2]
[374079988,1753197041548,-460.0,0.00017141,2]
[374079989,1753197041557,-243.85610002,0.00017141,2]
[374079990,1753197041567,-460.0,0.00017141,2]
[374079991,1753197041576,-460.0,0.00017141,2]
[374079992,1753197041586,-460.0,0.00017141,2]
[374079993,1753197041596,-460.0,0.00017141,2]
[374079994,1753197041606,-460.0,0.00017141,2]
[374079995,1753197041615,-460.0,0.00017141,2]
[374079996,1753197041625,-2278.94608023,0.00017141,2]
[374079997,1753197041638,-1632.78391977,0.00017141,2]
[374079998,1753197041648,-460.0,0.00017141,2]
[374079999,1753197041665,-604.80719875,0.00017141,2]
[374080000,1753197041676,-460.0,0.00017141,2]
[374080001,1753197041686,-651.39,0.00017141,2]
[374080002,1753197041696,-460.0,0.00017142,2]
[374080003,1753197041706,-1316.16,0.00017142,2]
[374080004,1753197041716,-460.0,0.00017142,2]
[374080005,1753197041725,-869.54,0.00017142,2]
[374080006,1753197041735,-1624.65,0.00017142,2]
[374080007,1753197041884,-969.07,0.00017142,2]